[Event "44th Chess Olympiad Women 2022"]
[Site "Chennai"]
[Date "2022.08.06"]
[Round "8.55"]
[White "Ntsielo, Bonolo"]
[Black "Cho, Yeonhee"]
[Result "1-0"]
[WhiteElo "1413"]
[BlackElo "1427"]
[Annotator "NA RC"]
[PlyCount "70"]
[EventDate "2022.??.??"]
[TimeControl "60"]

1. Nf3 {[%emt 0:00:03]} d5 {[%emt 0:00:06]} 2. g3 {[%emt 0:00:07]} Bg4 {
[%emt 0:00:09]} 3. Bg2 {[%emt 0:00:09]} c6 {[%emt 0:00:20]} 4. h3 {[%emt 0:00:
00]} Bh5 {[%emt 0:00:07]} 5. d3 {[%emt 0:00:08]} Nd7 {[%emt 0:00:27]} 6. Nbd2 {
[%emt 0:00:20]} e5 {[%emt 0:00:42]} 7. c4 {[%emt 0:00:32]} Ngf6 {[%emt 0:03:34]
} 8. Nh2 {[%emt 0:02:59]} Bd6 {[%emt 0:13:53]} 9. O-O {[%emt 0:08:06]} O-O {
[%emt 0:08:49]} 10. Re1 {[%emt 0:00:27]} a5 {[%emt 0:09:48]} 11. a3 {[%emt 0:
00:00]} Qc7 {[%emt 0:10:43]} 12. cxd5 {[%emt 0:11:31]} cxd5 {[%emt 0:04:18]}
13. Ndf1 {[%emt 0:02:02]} Nb6 {[%emt 0:13:46]} 14. Bg5 {[%emt 0:01:31]} Be7 {
[%emt 0:02:53]} 15. Rc1 {[%emt 0:06:15]} Qd6 {[%emt 0:00:40]} 16. Qb3 {[%emt 0:
00:00]} h6 {[%emt 0:11:26]} 17. Bxf6 {[%emt 0:00:30]} Bxf6 {[%emt 0:00:11]} 18.
Rc2 {[%emt 0:07:48]} Rfc8 {[%emt 0:04:15]} 19. Rec1 {[%emt 0:02:54]} Rxc2 {
[%emt 0:05:55]} 20. Rxc2 {[%emt 0:00:17]} Bg6 {[%emt 0:03:05]} 21. Nd2 {
[%emt 0:07:07]} Bd8 {[%emt 0:01:35]} 22. Ng4 {[%emt 0:05:11]} Bf5 {[%emt 0:00:
00]} 23. Ne3 {[%emt 0:04:53]} Be6 {[%emt 0:00:04]} 24. Qa2 {[%emt 0:01:32]} Rb8
{[%emt 0:02:03]} 25. Qb1 {[%emt 0:01:28]} Nd7 {[%emt 0:00:57]} 26. Qc1 {
[%emt 0:00:43]} Nf6 {[%emt 0:00:59]} 27. b3 {[%emt 0:10:05]} Be7 {[%emt 0:00:
00]} 28. a4 {[%emt 0:01:10]} Qb4 {[%emt 0:00:22]} 29. Kh2 {[%emt 0:04:22]} b5 {
[%emt 0:00:14]} 30. axb5 {[%emt 0:00:44]} Qxb5 {[%emt 0:00:34]} 31. h4 {
[%emt 0:01:12]} Bb4 {[%emt 0:00:58]} 32. Nd1 {[%emt 0:01:32]} Bxd2 {[%emt 0:00:
00]} 33. Qxd2 {[%emt 0:00:09]} Qxb3 {[%emt 0:00:04]} 34. Rb2 {[%emt 0:00:14]}
Qxb2 {[%emt 0:01:29]} 35. Nxb2 {[%emt 0:00:13]} Rb5 {[%emt 0:00:00]} 1-0

[Event "44th Chess Olympiad Women 2022"]
[Site "Chennai"]
[Date "2022.08.06"]
[Round "8.55"]
[White "Park, Haneul"]
[Black "Reitumetse Taioe"]
[Result "1-0"]
[WhiteElo "1531"]
[BlackElo "1180"]
[Annotator "NA RC"]
[PlyCount "151"]
[EventDate "2022.??.??"]
[TimeControl "60"]

1. d4 {[%emt 0:00:04]} e6 {[%emt 0:00:11]} 2. c4 {[%emt 0:00:06]} Nf6 {[%emt 0:
00:00]} 3. Nf3 {[%emt 0:00:05]} d5 {[%emt 0:00:22]} 4. Nc3 {[%emt 0:00:05]} Be7
{[%emt 0:00:27]} 5. Bf4 {[%emt 0:00:09]} O-O {[%emt 0:00:12]} 6. e3 {[%emt 0:
00:00]} c5 {[%emt 0:00:59]} 7. Be2 {[%emt 0:03:48]} Nc6 {[%emt 0:03:32]} 8. O-O
{[%emt 0:07:11]} b6 {[%emt 0:03:57]} 9. Rc1 {[%emt 0:08:59]} Bb7 {[%emt 0:00:
00]} 10. cxd5 {[%emt 0:15:25]} exd5 {[%emt 0:03:04]} 11. Re1 {[%emt 0:17:24]}
Rc8 {[%emt 0:17:16]} 12. Bd3 {[%emt 0:06:35]} Re8 {[%emt 0:06:39]} 13. Bf5 {
[%emt 0:01:27]} Ra8 {[%emt 0:06:54]} 14. Nb5 {[%emt 0:11:20]} Rf8 {[%emt 0:00:
00]} 15. Bc7 {[%emt 0:08:29]} Qe8 {[%emt 0:00:16]} 16. Nd6 {[%emt 0:01:37]}
Bxd6 {[%emt 0:00:13]} 17. Bxd6 {[%emt 0:00:11]} Ne7 {[%emt 0:00:32]} 18. Qc2 {
[%emt 0:01:17]} g6 {[%emt 0:04:52]} 19. Bh3 {[%emt 0:00:21]} c4 {[%emt 0:01:12]
} 20. b3 {[%emt 0:03:09]} b5 {[%emt 0:03:52]} 21. bxc4 {[%emt 0:02:42]} dxc4 {
[%emt 0:00:49]} 22. e4 {[%emt 0:02:01]} Qd8 {[%emt 0:01:37]} 23. Be5 {[%emt 0:
00:00]} Nc6 {[%emt 0:01:21]} 24. Rb1 {[%emt 0:03:34]} Ba6 {[%emt 0:09:39]} 25.
Bf4 {[%emt 0:03:19]} Nxd4 {[%emt 0:01:05]} 26. Nxd4 {[%emt 0:00:09]} Qxd4 {
[%emt 0:00:10]} 27. Rbd1 {[%emt 0:00:15]} Qc5 {[%emt 0:06:47]} 28. Bd6 {
[%emt 0:00:26]} Qc6 {[%emt 0:00:13]} 29. Bxf8 {[%emt 0:00:19]} Rxf8 {[%emt 0:
00:00]} 30. e5 {[%emt 0:00:42]} Nd5 {[%emt 0:00:41]} 31. Qe4 {[%emt 0:00:39]}
Bb7 {[%emt 0:00:47]} 32. e6 {[%emt 0:00:32]} Re8 {[%emt 0:01:53]} 33. exf7+ {
[%emt 0:01:17]} Kxf7 {[%emt 0:00:07]} 34. Qf3+ {[%emt 0:00:18]} Kg7 {[%emt 0:
00:00]} 35. g3 {[%emt 0:00:29]} Rxe1+ {[%emt 0:02:48]} 36. Rxe1 {[%emt 0:00:03]
} Qb6 {[%emt 0:00:13]} 37. Be6 {[%emt 0:00:45]} Nf6 {[%emt 0:00:33]} 38. Qe2 {
[%emt 0:00:34]} Qc6 {[%emt 0:00:39]} 39. f3 {[%emt 0:00:24]} Qxf3 {[%emt 0:00:
00]} 40. Qxf3 {[%emt 0:00:18]} Bxf3 {[%emt 0:00:09]} 41. Re5 {[%emt 0:30:32]}
Bc6 {[%emt 0:30:57]} 42. Rc5 {[%emt 0:00:30]} Be8 {[%emt 0:00:47]} 43. Rc7+ {
[%emt 0:00:44]} Kf8 {[%emt 0:03:02]} 44. Rxa7 {[%emt 0:00:44]} h5 {[%emt 0:00:
00]} 45. a4 {[%emt 0:00:00]} bxa4 {[%emt 0:00:00]} 46. Bxc4 {[%emt 0:00:00]}
Ne4 {[%emt 0:00:00]} 47. Bd3 {[%emt 0:00:00]} Nd6 {[%emt 0:00:00]} 48. Bc2 {
[%emt 0:00:00]} Nf5 {[%emt 0:00:00]} 49. Bxa4 {[%emt 0:00:00]} Bxa4 {[%emt 0:
00:00]} 50. Rxa4 {[%emt 0:00:00]} Kg7 {[%emt 0:00:00]} 51. Kf2 {[%emt 0:00:00]}
Kh6 {[%emt 0:00:00]} 52. Kf3 {[%emt 0:00:00]} Ne7 {[%emt 0:00:00]} 53. Kf4 {
[%emt 0:00:00]} Nd5+ {[%emt 0:00:02]} 54. Ke5 {[%emt 0:00:00]} Ne3 {[%emt 0:00:
00]} 55. h3 {[%emt 0:00:00]} Nf5 {[%emt 0:01:19]} 56. Ra3 {[%emt 0:00:00]} Kg5
{[%emt 0:03:06]} 57. Rf3 {[%emt 0:00:00]} h4 {[%emt 0:04:17]} 58. g4 {[%emt 0:
00:00]} Ng3 {[%emt 0:00:50]} 59. Rf2 {[%emt 0:01:32]} Nh1 {[%emt 0:01:12]} 60.
Rg2 {[%emt 0:00:38]} Ng3 {[%emt 0:00:12]} 61. Kd4 {[%emt 0:00:18]} Kf4 {
[%emt 0:01:16]} 62. Rf2+ {[%emt 0:00:11]} Kg5 {[%emt 0:00:41]} 63. Ke3 {
[%emt 0:00:24]} Nh1 {[%emt 0:00:26]} 64. Rg2 {[%emt 0:00:32]} Ng3 {[%emt 0:00:
00]} 65. Rg1 {[%emt 0:01:18]} Kf6 {[%emt 0:01:21]} 66. Kf3 {[%emt 0:00:46]} g5
{[%emt 0:00:45]} 67. Rxg3 {[%emt 0:01:09]} hxg3 {[%emt 0:00:08]} 68. Kxg3 {
[%emt 0:00:01]} Ke5 {[%emt 0:00:37]} 69. h4 {[%emt 0:00:30]} gxh4+ {[%emt 0:00:
00]} 70. Kxh4 {[%emt 0:00:06]} Kf6 {[%emt 0:00:07]} 71. Kh5 {[%emt 0:00:06]}
Kg7 {[%emt 0:00:08]} 72. Kg5 {[%emt 0:00:04]} Kf7 {[%emt 0:00:33]} 73. Kh6 {
[%emt 0:00:27]} Kg8 {[%emt 0:00:18]} 74. g5 {[%emt 0:00:13]} Kh8 {[%emt 0:00:
00]} 75. g6 {[%emt 0:00:06]} Kg8 {[%emt 0:00:08]} 76. g7 {[%emt 0:00:00]} 1-0

[Event "44th Chess Olympiad Women 2022"]
[Site "Chennai"]
[Date "2022.08.06"]
[Round "8.55"]
[White "Park, Sunwoo"]
[Black "Malehloa, Likhomo"]
[Result "1/2-1/2"]
[WhiteElo "1773"]
[BlackElo "1322"]
[Annotator "NA RC"]
[PlyCount "110"]
[EventDate "2022.??.??"]
[TimeControl "60"]

1. e4 {[%emt 0:00:04]} e6 {[%emt 0:00:18]} 2. d4 {[%emt 0:00:06]} d5 {[%emt 0:
00:00]} 3. Nd2 {[%emt 0:01:11]} dxe4 {[%emt 0:02:01]} 4. Nxe4 {[%emt 0:00:09]}
Bd7 {[%emt 0:00:27]} 5. Nf3 {[%emt 0:01:23]} Bc6 {[%emt 0:01:04]} 6. Bd3 {
[%emt 0:03:04]} Nd7 {[%emt 0:01:45]} 7. O-O {[%emt 0:00:50]} Ngf6 {[%emt 0:00:
00]} 8. Qe2 {[%emt 0:07:24]} Be7 {[%emt 0:03:50]} 9. Bd2 {[%emt 0:03:48]} O-O {
[%emt 0:08:25]} 10. Rad1 {[%emt 0:02:48]} Re8 {[%emt 0:04:15]} 11. c4 {[%emt 0:
00:00]} b6 {[%emt 0:08:06]} 12. Bc1 {[%emt 0:04:42]} Bb7 {[%emt 0:03:09]} 13.
Ne5 {[%emt 0:02:02]} Qc8 {[%emt 0:12:14]} 14. Ng5 {[%emt 0:06:38]} Rf8 {
[%emt 0:02:32]} 15. Rfe1 {[%emt 0:10:26]} Bb4 {[%emt 0:04:48]} 16. Rf1 {
[%emt 0:01:24]} h6 {[%emt 0:02:17]} 17. Ngf3 {[%emt 0:08:07]} Bd6 {[%emt 0:00:
00]} 18. Nxd7 {[%emt 0:09:52]} Nxd7 {[%emt 0:04:10]} 19. Ne5 {[%emt 0:02:17]}
Nf6 {[%emt 0:02:21]} 20. Ng4 {[%emt 0:11:01]} Nxg4 {[%emt 0:13:42]} 21. Qxg4 {
[%emt 0:00:12]} f5 {[%emt 0:00:13]} 22. Qh3 {[%emt 0:06:01]} Qe8 {[%emt 0:00:
00]} 23. f4 {[%emt 0:03:52]} Qg6 {[%emt 0:02:38]} 24. Be2 {[%emt 0:00:35]} c5 {
[%emt 0:04:58]} 25. d5 {[%emt 0:00:59]} exd5 {[%emt 0:02:19]} 26. cxd5 {
[%emt 0:00:40]} Qf6 {[%emt 0:01:18]} 27. Bc4 {[%emt 0:04:06]} a6 {[%emt 0:00:
00]} 28. Rfe1 {[%emt 0:01:50]} Rae8 {[%emt 0:00:43]} 29. Re6 {[%emt 0:01:19]}
Rxe6 {[%emt 0:01:31]} 30. dxe6 {[%emt 0:00:02]} Be7 {[%emt 0:01:36]} 31. Qc3 {
[%emt 0:01:47]} Qxc3 {[%emt 0:02:34]} 32. bxc3 {[%emt 0:00:07]} Bc8 {[%emt 0:
00:00]} 33. a4 {[%emt 0:01:42]} g6 {[%emt 0:02:02]} 34. Bb2 {[%emt 0:00:34]}
Kh7 {[%emt 0:00:29]} 35. Kf2 {[%emt 0:00:26]} Rd8 {[%emt 0:00:34]} 36. Rd5 {
[%emt 0:00:45]} Rxd5 {[%emt 0:00:26]} 37. Bxd5 {[%emt 0:00:05]} b5 {[%emt 0:00:
00]} 38. axb5 {[%emt 0:00:44]} axb5 {[%emt 0:00:14]} 39. Ke3 {[%emt 0:00:26]}
g5 {[%emt 0:00:43]} 40. g3 {[%emt 0:00:35]} Kg6 {[%emt 0:00:12]} 41. h3 {
[%emt 0:30:37]} Bf6 {[%emt 0:32:32]} 42. Ba3 {[%emt 0:00:00]} Be7 {[%emt 0:00:
00]} 43. c4 {[%emt 0:00:00]} b4 {[%emt 0:00:00]} 44. Bc1 {[%emt 0:00:00]} Bf6 {
[%emt 0:00:00]} 45. Kd3 {[%emt 0:00:00]} Bd4 {[%emt 0:00:00]} 46. g4 {[%emt 0:
00:00]} fxg4 {[%emt 0:00:00]} 47. hxg4 {[%emt 0:00:00]} gxf4 {[%emt 0:00:00]}
48. Bxf4 {[%emt 0:00:00]} Bg7 {[%emt 0:00:00]} 49. Bd6 {[%emt 0:00:00]} Bd4 {
[%emt 0:00:00]} 50. Be7 {[%emt 0:00:00]} Kg7 {[%emt 0:00:00]} 51. Kc2 {[%emt 0:
00:00]} Be3 {[%emt 0:00:00]} 52. Kb3 {[%emt 0:00:00]} Bd4 {[%emt 0:00:00]} 53.
Bd6 {[%emt 0:00:47]} Be3 {[%emt 0:00:00]} 54. Be5+ {[%emt 0:00:23]} Kf8 {
[%emt 0:00:00]} 55. Bd6+ {[%emt 0:01:29]} Kg7 {[%emt 0:00:00]} 1/2-1/2

[Event "44th Chess Olympiad Women 2022"]
[Site "Chennai"]
[Date "2022.08.06"]
[Round "8.55"]
[White "Thetsane Nteboheleng"]
[Black "You, Garam"]
[Result "0-1"]
[WhiteElo "1259"]
[BlackElo "1407"]
[Annotator "NA RC"]
[PlyCount "48"]
[EventDate "2022.??.??"]
[TimeControl "60"]

1. e4 {[%emt 0:00:04]} c5 {[%emt 0:00:03]} 2. Nf3 {[%emt 0:00:06]} g6 {[%emt 0:
00:00]} 3. Nc3 {[%emt 0:00:11]} Nc6 {[%emt 0:00:41]} 4. d4 {[%emt 0:00:14]}
cxd4 {[%emt 0:00:25]} 5. Nxd4 {[%emt 0:00:05]} Nf6 {[%emt 0:00:18]} 6. Nb3 {
[%emt 0:00:19]} Bg7 {[%emt 0:00:41]} 7. Bc4 {[%emt 0:00:07]} O-O {[%emt 0:00:
00]} 8. O-O {[%emt 0:00:05]} d6 {[%emt 0:03:16]} 9. Bf4 {[%emt 0:00:34]} a6 {
[%emt 0:08:58]} 10. a4 {[%emt 0:01:25]} Nb4 {[%emt 0:04:46]} 11. Rc1 {[%emt 0:
00:00]} Qc7 {[%emt 0:02:48]} 12. Qd4 {[%emt 0:01:17]} e5 {[%emt 0:00:48]} 13.
Bxe5 {[%emt 0:01:12]} dxe5 {[%emt 0:00:15]} 14. Bxf7+ {[%emt 0:00:07]} Qxf7 {
[%emt 0:00:49]} 15. Qxb4 {[%emt 0:00:06]} Be6 {[%emt 0:05:22]} 16. Nc5 {
[%emt 0:00:40]} a5 {[%emt 0:02:33]} 17. Qb6 {[%emt 0:02:28]} Bc4 {[%emt 0:00:
00]} 18. Rfd1 {[%emt 0:00:30]} Bh6 {[%emt 0:02:46]} 19. Ra1 {[%emt 0:01:46]}
Ng4 {[%emt 0:00:12]} 20. Nd3 {[%emt 0:03:49]} Ra6 {[%emt 0:04:08]} 21. Qc5 {
[%emt 0:01:31]} Rc6 {[%emt 0:01:31]} 22. Qxa5 {[%emt 0:01:19]} Bxd3 {[%emt 0:
00:00]} 23. Rxd3 {[%emt 0:00:10]} Qxf2+ {[%emt 0:01:02]} 24. Kh1 {[%emt 0:00:
00]} Qf1+ {[%emt 0:01:44]} 0-1

[Event "44th Chess Olympiad Women 2022"]
[Site "Chennai"]
[Date "2022.08.06"]
[Round "8.56"]
[White "Appau Abena Tiwaa"]
[Black "El Flow, Khuloud"]
[Result "0-1"]
[WhiteElo "1103"]
[BlackElo "1836"]
[Annotator "NA RC"]
[PlyCount "54"]
[EventDate "2022.??.??"]
[TimeControl "60"]

1. d4 {[%emt 0:00:05]} Nf6 {[%emt 0:00:04]} 2. Nf3 {[%emt 0:00:15]} d6 {
[%emt 0:00:35]} 3. c3 {[%emt 0:00:31]} g6 {[%emt 0:01:46]} 4. Bf4 {[%emt 0:00:
00]} Bg7 {[%emt 0:00:23]} 5. e3 {[%emt 0:00:42]} Nh5 {[%emt 0:00:44]} 6. Bg3 {
[%emt 0:01:18]} Nxg3 {[%emt 0:00:11]} 7. hxg3 {[%emt 0:00:12]} Bf5 {[%emt 0:00:
00]} 8. Nbd2 {[%emt 0:00:37]} O-O {[%emt 0:02:05]} 9. e4 {[%emt 0:00:47]} Bd7 {
[%emt 0:02:12]} 10. Qb3 {[%emt 0:01:21]} Qc8 {[%emt 0:03:23]} 11. Bc4 {[%emt 0:
00:00]} e6 {[%emt 0:00:41]} 12. O-O-O {[%emt 0:01:25]} a6 {[%emt 0:01:06]} 13.
Kb1 {[%emt 0:03:28]} b5 {[%emt 0:00:48]} 14. Bd3 {[%emt 0:01:14]} c5 {[%emt 0:
00:00]} 15. dxc5 {[%emt 0:01:36]} dxc5 {[%emt 0:04:22]} 16. Qc2 {[%emt 0:00:51]
} c4 {[%emt 0:00:44]} 17. Be2 {[%emt 0:00:55]} Qc5 {[%emt 0:00:48]} 18. Rdf1 {
[%emt 0:02:19]} Nc6 {[%emt 0:02:17]} 19. Qd1 {[%emt 0:02:19]} Rfb8 {[%emt 0:00:
00]} 20. Nxc4 {[%emt 0:05:57]} bxc4 {[%emt 0:07:44]} 21. Qxd7 {[%emt 0:02:40]}
Qa3 {[%emt 0:05:30]} 22. Qd2 {[%emt 0:04:16]} Bxc3 {[%emt 0:00:17]} 23. Kc1 {
[%emt 0:02:38]} Bxd2+ {[%emt 0:01:37]} 24. Kxd2 {[%emt 0:00:54]} Rxb2+ {
[%emt 0:01:05]} 25. Ke1 {[%emt 0:01:43]} Qc3+ {[%emt 0:00:33]} 26. Kd1 {
[%emt 0:00:37]} Rd8+ {[%emt 0:00:10]} 27. Bd3 {[%emt 0:05:07]} Rxd3+ {[%emt 0:
00:00]} 0-1

[Event "44th Chess Olympiad Women 2022"]
[Site "Chennai"]
[Date "2022.08.06"]
[Round "8.56"]
[White "Elfelo, Eklas"]
[Black "Felix, Tobi"]
[Result "0-1"]
[WhiteElo "1562"]
[BlackElo "1460"]
[Annotator "NA"]
[PlyCount "76"]
[EventDate "2022.??.??"]
[TimeControl "60"]

1. e4 {[%emt 0:00:01]} c6 {[%emt 0:00:04]} 2. d4 {[%emt 0:00:08]} d5 {[%emt 0:
00:00]} 3. exd5 {[%emt 0:00:14]} cxd5 {[%emt 0:00:06]} 4. Nf3 {[%emt 0:00:10]}
Nc6 {[%emt 0:00:06]} 5. Bd3 {[%emt 0:01:24]} Bg4 {[%emt 0:00:24]} 6. c3 {
[%emt 0:00:20]} e6 {[%emt 0:00:31]} 7. Nbd2 {[%emt 0:00:30]} Nf6 {[%emt 0:00:
00]} 8. Qa4 {[%emt 0:01:35]} Bd6 {[%emt 0:02:28]} 9. O-O {[%emt 0:02:45]} O-O {
[%emt 0:00:59]} 10. Re1 {[%emt 0:02:00]} a6 {[%emt 0:00:52]} 11. Ne5 {[%emt 0:
00:00]} Qc7 {[%emt 0:02:15]} 12. Ndf3 {[%emt 0:06:21]} Bxf3 {[%emt 0:02:33]}
13. Nxf3 {[%emt 0:00:29]} b5 {[%emt 0:00:47]} 14. Qc2 {[%emt 0:02:07]} h6 {
[%emt 0:00:40]} 15. h3 {[%emt 0:00:50]} b4 {[%emt 0:01:46]} 16. Qe2 {[%emt 0:
00:00]} bxc3 {[%emt 0:03:53]} 17. bxc3 {[%emt 0:00:21]} a5 {[%emt 0:03:26]} 18.
Ne5 {[%emt 0:01:50]} Rfc8 {[%emt 0:03:46]} 19. Bf4 {[%emt 0:02:11]} Bxe5 {
[%emt 0:09:38]} 20. dxe5 {[%emt 0:05:03]} Nd7 {[%emt 0:00:00]} 21. Qh5 {
[%emt 0:07:30]} Kf8 {[%emt 0:06:07]} 22. Re3 {[%emt 0:04:06]} Ke8 {[%emt 0:00:
00]} 23. Rae1 {[%emt 0:08:18]} Ke7 {[%emt 0:10:09]} 24. Bg5+ {[%emt 0:19:29]}
hxg5 {[%emt 0:04:07]} 25. Qxg5+ {[%emt 0:00:02]} Kf8 {[%emt 0:04:54]} 26. f4 {
[%emt 0:04:23]} Nc5 {[%emt 0:07:40]} 27. Bc2 {[%emt 0:03:18]} Qe7 {[%emt 0:00:
00]} 28. Qh5 {[%emt 0:02:14]} Ke8 {[%emt 0:01:08]} 29. f5 {[%emt 0:04:20]} Kd7
{[%emt 0:04:08]} 30. fxe6+ {[%emt 0:02:01]} Nxe6 {[%emt 0:01:01]} 31. Rf1 {
[%emt 0:03:31]} Rh8 {[%emt 0:08:09]} 32. Qg4 {[%emt 0:03:26]} Raf8 {[%emt 0:00:
00]} 33. Rd3 {[%emt 0:00:45]} Qc5+ {[%emt 0:02:09]} 34. Kh2 {[%emt 0:02:31]}
Nxe5 {[%emt 0:00:04]} 35. Qa4+ {[%emt 0:02:54]} Ke7 {[%emt 0:01:10]} 36. Rdd1 {
[%emt 0:00:20]} Qxc3 {[%emt 0:01:26]} 37. Rxd5 {[%emt 0:00:05]} Qc7 {[%emt 0:
00:00]} 38. Re1 {[%emt 0:00:32]} Nf3+ {[%emt 0:00:22]} 0-1

[Event "44th Chess Olympiad Women 2022"]
[Site "Chennai"]
[Date "2022.08.06"]
[Round "8.56"]
[White "Elfelo, Khadija"]
[Black "Dotse Dzidzor Esi"]
[Result "1-0"]
[WhiteElo "1875"]
[BlackElo "1195"]
[Annotator "NA RC"]
[PlyCount "117"]
[EventDate "2022.??.??"]
[TimeControl "60"]

1. e4 {[%emt 0:00:04]} c6 {[%emt 0:00:14]} 2. d4 {[%emt 0:00:29]} d5 {[%emt 0:
00:00]} 3. exd5 {[%emt 0:00:45]} cxd5 {[%emt 0:00:10]} 4. c4 {[%emt 0:00:05]}
Nf6 {[%emt 0:00:25]} 5. Nc3 {[%emt 0:00:18]} Bf5 {[%emt 0:00:38]} 6. Nf3 {
[%emt 0:01:15]} e6 {[%emt 0:01:54]} 7. Be2 {[%emt 0:04:44]} Bb4 {[%emt 0:01:37]
} 8. Qa4+ {[%emt 0:05:41]} Nc6 {[%emt 0:00:20]} 9. Ne5 {[%emt 0:01:00]} Bxc3+ {
[%emt 0:01:07]} 10. bxc3 {[%emt 0:00:06]} Qc7 {[%emt 0:01:29]} 11. Bf4 {
[%emt 0:07:38]} Qc8 {[%emt 0:05:21]} 12. c5 {[%emt 0:04:04]} O-O {[%emt 0:00:
00]} 13. O-O {[%emt 0:00:22]} Nxe5 {[%emt 0:03:45]} 14. Bxe5 {[%emt 0:00:28]}
Ne4 {[%emt 0:01:28]} 15. Qb4 {[%emt 0:02:13]} a5 {[%emt 0:08:52]} 16. Qb2 {
[%emt 0:01:17]} a4 {[%emt 0:03:26]} 17. f3 {[%emt 0:06:50]} a3 {[%emt 0:02:23]}
18. Qc1 {[%emt 0:01:56]} Nf6 {[%emt 0:02:52]} 19. Bd6 {[%emt 0:09:38]} Rd8 {
[%emt 0:02:35]} 20. Bb5 {[%emt 0:00:47]} Nd7 {[%emt 0:01:11]} 21. Qg5 {[%emt 0:
00:00]} h6 {[%emt 0:01:36]} 22. Qe7 {[%emt 0:06:42]} Ra5 {[%emt 0:02:44]} 23.
c4 {[%emt 0:07:47]} Bd3 {[%emt 0:04:11]} 24. Rfc1 {[%emt 0:03:46]} dxc4 {
[%emt 0:00:13]} 25. Bxc4 {[%emt 0:01:52]} Bg6 {[%emt 0:00:23]} 26. Bb3 {
[%emt 0:01:22]} Re8 {[%emt 0:00:48]} 27. Qh4 {[%emt 0:01:10]} Qd8 {[%emt 0:00:
00]} 28. Qf4 {[%emt 0:01:34]} Qf6 {[%emt 0:01:13]} 29. Qd2 {[%emt 0:00:35]}
Raa8 {[%emt 0:02:07]} 30. Qb4 {[%emt 0:00:55]} Ra7 {[%emt 0:01:52]} 31. Ba4 {
[%emt 0:00:33]} Qd8 {[%emt 0:13:13]} 32. Qb5 {[%emt 0:05:44]} Nf6 {[%emt 0:00:
00]} 33. Rc3 {[%emt 0:01:53]} Qa5 {[%emt 0:01:23]} 34. Qxa5 {[%emt 0:00:46]}
Rxa5 {[%emt 0:00:36]} 35. Bxe8 {[%emt 0:00:03]} Nxe8 {[%emt 0:00:28]} 36. Be5 {
[%emt 0:00:34]} Ra4 {[%emt 0:06:22]} 37. Rb3 {[%emt 0:02:31]} f6 {[%emt 0:00:
00]} 38. Bg3 {[%emt 0:00:04]} Rxd4 {[%emt 0:01:11]} 39. Rxb7 {[%emt 0:01:38]}
Rd2 {[%emt 0:04:04]} 40. Ra7 {[%emt 0:02:54]} Rd3 {[%emt 0:03:18]} 41. c6 {
[%emt 0:30:25]} Rc3 {[%emt 0:30:41]} 42. c7 {[%emt 0:03:20]} e5 {[%emt 0:01:20]
} 43. Be1 {[%emt 0:00:48]} Rxc7 {[%emt 0:02:09]} 44. Rxa3 {[%emt 0:00:06]} Bf7
{[%emt 0:01:13]} 45. Ra8 {[%emt 0:00:27]} Kh7 {[%emt 0:00:41]} 46. a4 {[%emt 0:
00:00]} Nd6 {[%emt 0:02:21]} 47. a5 {[%emt 0:00:58]} Nb5 {[%emt 0:04:52]} 48.
a6 {[%emt 0:00:09]} Bd5 {[%emt 0:00:22]} 49. Rd8 {[%emt 0:00:29]} Bc6 {[%emt 0:
00:00]} 50. Bf2 {[%emt 0:01:53]} Na7 {[%emt 0:00:23]} 51. Rc1 {[%emt 0:01:15]}
Kg6 {[%emt 0:01:26]} 52. Bxa7 {[%emt 0:00:10]} Rxa7 {[%emt 0:00:40]} 53. Rxc6 {
[%emt 0:00:02]} Kf5 {[%emt 0:02:01]} 54. Rb8 {[%emt 0:00:12]} Rd7 {[%emt 0:00:
00]} 55. Rc1 {[%emt 0:00:00]} Ke6 {[%emt 0:00:00]} 56. Ra1 {[%emt 0:00:00]} Ra7
{[%emt 0:00:00]} 57. Rb7 {[%emt 0:00:00]} Rxa6 {[%emt 0:00:00]} 58. Rxa6+ {
[%emt 0:00:00]} Kf5 {[%emt 0:00:00]} 59. Rxg7 {[%emt 0:00:00]} 1-0

[Event "44th Chess Olympiad Women 2022"]
[Site "Chennai"]
[Date "2022.08.06"]
[Round "8.57"]
[White "Adhikari, Kritisara"]
[Black "Estur, Grace Co"]
[Result "1-0"]
[WhiteElo "1552"]
[BlackElo "1472"]
[Annotator "NA RC"]
[PlyCount "45"]
[EventDate "2022.??.??"]
[TimeControl "60"]

1. d4 {[%emt 0:00:07]} d5 {[%emt 0:00:15]} 2. Bf4 {[%emt 0:00:17]} e6 {[%emt 0:
00:00]} 3. e3 {[%emt 0:00:10]} b6 {[%emt 0:01:26]} 4. Nd2 {[%emt 0:00:27]} Bb7
{[%emt 0:00:54]} 5. Ngf3 {[%emt 0:00:29]} Nd7 {[%emt 0:02:23]} 6. Bd3 {[%emt 0:
00:00]} Ngf6 {[%emt 0:04:07]} 7. Qe2 {[%emt 0:02:21]} a6 {[%emt 0:01:35]} 8. a4
{[%emt 0:01:02]} c5 {[%emt 0:06:48]} 9. c3 {[%emt 0:01:03]} Be7 {[%emt 0:06:42]
} 10. O-O {[%emt 0:01:20]} O-O {[%emt 0:03:22]} 11. Rfe1 {[%emt 0:07:37]} h6 {
[%emt 0:06:32]} 12. h3 {[%emt 0:08:49]} Ne8 {[%emt 0:05:48]} 13. e4 {[%emt 0:
00:00]} Bd6 {[%emt 0:02:55]} 14. e5 {[%emt 0:00:53]} Bb8 {[%emt 0:04:23]} 15.
Bg3 {[%emt 0:02:52]} Qc8 {[%emt 0:01:49]} 16. Bh4 {[%emt 0:04:38]} Nc7 {
[%emt 0:02:27]} 17. Nh2 {[%emt 0:05:26]} Re8 {[%emt 0:04:53]} 18. Qg4 {[%emt 0:
00:00]} Ba7 {[%emt 0:04:26]} 19. Bf6 {[%emt 0:03:22]} g5 {[%emt 0:07:09]} 20.
Qh5 {[%emt 0:01:11]} Re7 {[%emt 0:10:43]} 21. Qxh6 {[%emt 0:01:23]} Nxf6 {
[%emt 0:05:58]} 22. exf6 {[%emt 0:00:10]} e5 {[%emt 0:01:36]} 23. Qg7# {
[%emt 0:00:11]} 1-0